bitfinex/quotes_ETHUSD_20250425
["timestamp","ask_amount","ask_price","bid_price","bid_amount"]
[1745591905938,0.31438814,1780.6,1780.2,4.41459203]
[1745591906859,0.31438814,1780.8,1780.2,4.41459203]
[1745591907573,0.31438814,1780.8,1780.3,3.65466548]
[1745591907777,0.36438814,1780.9,1780.4,4.01326548]
[1745591907963,0.36438814,1780.9,1780.5,4.05599203]
[1745591908480,0.36438814,1780.9,1780.6,0.41474835]
[1745591908635,0.05,1780.9,1780.6,0.3586]
[1745591909663,0.05,1780.9,1780.5,4.05599203]
[1745591910038,0.36397214,1780.9,1780.5,4.05599203]
[1745591910266,0.36397214,1780.9,1780.5,3.65466548]
[1745591910469,0.8154,1780.7,1780.5,3.65466548]
[1745591910669,9.13367464,1780.6,1780.5,3.65466548]
[1745591911841,7.506465,1780.5,1779.8,4.01326548]
[1745591912063,3.0,1780.0,1779.8,3.65466548]
[1745591912456,6.97427464,1780.3,1779.8,3.65466548]
[1745591913179,8.5318021,1780.3,1779.8,3.65466548]
[1745591913478,6.13367464,1780.1,1779.8,3.65466548]
[1745591915061,11.5318021,1780.3,1779.8,3.65466548]
[1745591915411,0.31399731,1780.2,1779.8,3.65466548]
[1745591915759,3.31399731,1780.2,1779.8,3.65466548]
[1745591916158,0.12918229,1780.1,1779.8,3.65466548]
[1745591916353,3.31399731,1780.2,1779.8,3.65466548]
[1745591916565,0.12903005,1780.0,1779.8,3.65466548]
[1745591916779,3.31399731,1780.2,1779.8,3.65466548]
[1745591916971,0.12887779,1779.9,1779.8,3.65466548]
[1745591919290,0.31410991,1780.0,1779.9,0.3559]
[1745591919487,0.31410991,1780.0,1779.9,4.01056548]
[1745591920187,3.31410991,1780.5,1779.9,4.01056548]
[1745591920388,0.31410991,1780.5,1779.9,3.71083274]
[1745591920593,0.31410991,1780.5,1780.0,0.78315057]
[1745591921098,0.31410991,1780.5,1780.0,0.72698327]
[1745591921468,0.31421523,1780.5,1780.1,0.05616724]
[1745591921692,0.31421523,1780.5,1780.1,0.05616725]
[1745591922007,0.31421523,1780.5,1780.2,0.3559]
[1745591922188,0.31421523,1780.5,1780.3,3.65466548]
[1745591922500,0.31421523,1780.5,1780.4,0.72136655]
[1745591922887,3.05,1780.9,1780.4,0.72136655]
[1745591922888,3.36421523,1780.9,1780.4,0.72136655]
[1745591923086,3.36421523,1780.9,1780.5,3.65466548]
[1745591923601,0.31421523,1780.8,1780.5,3.65466548]
[1745591923799,0.31421523,1780.8,1780.6,3.65466548]
[1745591923999,0.31421523,1780.8,1780.7,0.3559]
[1745591924695,0.05,1780.9,1780.7,0.3559]
[1745591926963,0.05,1780.9,1780.8,3.65466548]
[1745591929993,3.8942,1780.9,1780.4,3.65466548]
[1745591930211,6.13367464,1780.6,1780.4,3.65466548]
[1745591931738,3.8204,1780.5,1780.4,3.65466548]
[1745591934492,9.43679988,1780.5,1779.9,0.3559]
[1745591934823,6.13367464,1780.2,1780.0,3.65466548]
[1745591937344,3.0,1780.3,1780.0,3.65466548]
[1745591937644,3.31392774,1780.3,1780.0,3.65466548]
[1745591939415,3.31392774,1780.3,1780.0,4.02013203]
[1745591939610,3.31392774,1780.3,1780.1,0.3559]
[1745591939901,11.72367464,1780.4,1780.1,0.3559]
[1745591940663,5.59,1780.4,1780.1,0.3559]
[1745591940841,3.0,1780.5,1780.1,0.3559]
[1745591941040,3.31395063,1780.5,1780.1,0.7935032]
[1745591941246,11.75051583,1780.4,1780.0,3.65466548]
[1745591941537,0.8226,1780.3,1780.0,3.65466548]
[1745591942239,0.31395063,1780.3,1780.0,3.65466548]
[1745591942841,1.15025063,1780.3,1780.0,3.65466548]
[1745591943057,0.8363,1780.3,1780.0,3.65466548]
[1745591943261,6.45340269,1780.3,1780.0,3.65466548]
[1745591943428,1.24270294,1780.1,1780.0,3.65466548]
[1745591949458,1.1504465,1780.3,1780.0,4.02013203]
[1745591949656,0.3141465,1780.3,1780.0,4.02013203]
[1745591949867,1.24270294,1780.2,1780.0,4.02013203]
[1745591950694,0.3141465,1780.4,1780.1,0.3597]
[1745591950881,1.55684944,1780.4,1780.1,0.3597]
[1745591951064,1.24270294,1780.4,1780.1,0.3597]
[1745591951266,1.24270294,1780.4,1780.1,0.7976832]
[1745591952287,1.24270294,1780.4,1780.1,0.3597]
[1745591953377,1.24270294,1780.4,1780.1,4.01436548]
[1745591953899,0.3141465,1780.5,1780.1,4.01436548]
[1745591954800,0.3141465,1780.5,1780.2,3.65466548]
[1745591956001,1.24270294,1780.4,1780.2,3.65466548]
[1745591956202,1.24270294,1780.4,1780.2,4.05610203]
[1745591956403,0.3141465,1780.5,1780.2,4.05610203]
[1745591957842,0.3147093,1780.4,1780.2,4.05610203]
[1745591958800,4.24270294,1780.6,1780.2,4.05610203]
[1745591959651,0.31503056,1780.5,1780.2,4.05610203]
[1745591959851,0.31503056,1780.5,1780.3,0.4056102]
[1745591960425,0.31503056,1780.5,1780.4,0.3597]
[1745591960744,1.29270294,1780.9,1780.4,0.3597]
[1745591960923,0.05,1780.9,1780.5,3.65466548]
[1745591961123,0.05,1780.9,1780.6,0.05615547]
[1745591961340,0.05,1780.9,1780.7,4.01436548]
[1745591963861,0.05,1780.9,1780.7,3.65466548]
[1745591964360,1.24270294,1780.8,1780.7,3.65466548]
[1745591968048,4.55718859,1780.8,1780.7,3.65466548]
[1745591968787,0.31448565,1780.8,1780.7,3.65466548]
[1745591968993,1.55718859,1780.8,1780.7,3.65466548]
[1745591969615,4.55718859,1780.8,1780.7,3.65466548]
[1745591969900,5.579426,1780.8,1780.7,3.65466548]
[1745591970900,0.31448565,1780.8,1780.7,3.65466548]
[1745591971448,1.60718859,1780.9,1780.7,3.65466548]
[1745591971822,1.29270294,1780.9,1780.7,3.65466548]
[1745591972531,1.29270294,1780.9,1780.7,4.01376548]
[1745591973535,0.05,1780.9,1780.7,4.01376548]
[1745591973701,0.05,1780.9,1780.8,0.40137655]
[1745591973919,0.05,1780.9,1780.8,4.05604203]
[1745591975134,1.29270294,1780.9,1780.8,4.05604203]
[1745591976067,1.29270294,1780.9,1780.8,3.65466548]
[1745591976215,0.05,1780.9,1780.8,3.65466548]
[1745591976970,1.29270294,1780.9,1780.8,3.65466548]
[1745591977115,10.72734135,1780.9,1780.8,3.65466548]
[1745591978039,5.42635156,1780.9,1780.8,3.65466548]
[1745591978237,12.70713573,1780.9,1780.8,3.65466548]
[1745591981317,1.60685156,1780.9,1780.8,3.65466548]
[1745591982129,8.09868997,1780.9,1780.8,3.65466548]
[1745591982331,5.61642633,1780.5,1780.1,3.65466548]
[1745591982550,1.24270294,1780.3,1780.1,3.65466548]
[1745591982723,3.8452,1780.2,1780.1,3.65466548]
[1745591983625,4.15934862,1780.2,1780.1,3.65466548]
[1745591984260,1.15934862,1780.2,1780.1,3.65466548]
[1745591984449,1.55685156,1780.2,1780.1,3.65466548]
[1745591984624,4.55685156,1780.2,1780.1,3.65466548]
[1745591984968,1.55685156,1780.2,1780.1,3.65466548]
[1745591985466,4.55685156,1780.2,1780.1,3.65466548]
[1745591985772,5.5742558,1780.2,1780.1,3.65466548]
[1745591985928,11.19160216,1780.2,1780.1,3.65466548]
[1745591986268,5.5742558,1780.2,1780.1,3.65466548]
[1745591986449,4.55685156,1780.2,1780.1,3.65466548]
[1745591986851,1.55685156,1780.2,1780.1,3.65466548]
[1745591987558,1.24270294,1780.2,1780.1,3.65466548]
[1745591988266,1.55685156,1780.3,1780.1,3.65466548]
[1745591988651,0.31419884,1780.2,1780.1,3.65466548]
[1745591988858,3.31419884,1780.2,1780.1,3.65466548]
[1745591989362,0.31419884,1780.2,1780.1,3.65466548]
[1745591989671,1.55690178,1780.3,1780.1,3.65466548]
[1745591989967,0.31419884,1780.2,1780.1,3.65466548]
[1745591990371,0.31419884,1780.2,1780.1,4.02013203]
[1745591990570,0.31419884,1780.2,1780.1,4.37923203]
[1745591990746,1.24270294,1780.4,1780.1,4.37923203]
[1745591990952,1.24270294,1780.2,1780.1,4.37923203]
[1745591991261,1.24270294,1780.2,1780.1,3.65466548]
[1745591992624,4.24270294,1780.2,1780.1,3.65466548]
[1745591992878,1.24270294,1780.2,1780.1,3.65466548]
[1745591993081,1.55690178,1780.2,1780.1,3.65466548]
[1745591994341,4.55690178,1780.2,1780.1,3.65466548]
[1745591994554,5.5743012,1780.2,1780.1,3.65466548]
[1745591994754,4.55690178,1780.2,1780.1,3.65466548]
[1745591995339,1.55690178,1780.2,1780.1,3.65466548]
[1745591995578,4.55690178,1780.2,1780.1,3.65466548]
[1745591995738,4.24270294,1780.2,1780.1,3.65466548]
[1745591996463,1.24270294,1780.2,1780.1,3.65466548]
[1745591996975,1.55690178,1780.2,1780.1,3.65466548]
[1745591997671,1.24270294,1780.2,1780.1,3.65466548]
[1745591997873,4.24270294,1780.2,1780.1,3.65466548]
[1745591998042,5.26011229,1780.2,1780.1,3.65466548]
[1745591998241,5.57431113,1780.2,1780.1,3.65466548]
[1745591998644,4.55690178,1780.2,1780.1,3.65466548]
[1745592000476,11.06444814,1780.2,1780.1,3.65466548]
[1745592000679,8.61782447,1780.1,1779.7,3.65466548]
[1745592000845,1.24270294,1779.8,1779.7,3.65466548]
[1745592001793,1.55690178,1779.8,1779.7,3.65466548]
[1745592002544,7.17551061,1779.8,1779.7,3.65466548]
[1745592002744,5.61943596,1779.6,1779.4,3.65466548]
[1745592002980,5.61943596,1779.6,1778.4,1.24270294]
[1745592002981,5.62031143,1779.3,1778.8,4.01036548]
[1745592003158,1.24270294,1778.9,1778.8,4.01036548]
[1745592004100,1.24270294,1778.9,1778.8,3.65466548]
[1745592005197,1.24270294,1779.1,1778.8,3.65466548]
[1745592005403,1.55690178,1779.3,1778.9,0.72116655]
[1745592005712,1.24270294,1779.3,1779.0,3.65466548]
[1745592006608,1.24270294,1779.1,1779.0,3.65466548]
[1745592008386,1.24270294,1779.1,1778.6,3.65466548]
[1745592008592,1.24270294,1778.8,1778.6,3.65466548]
[1745592009177,1.24270294,1778.9,1778.6,3.65466548]
[1745592009375,1.24270294,1779.0,1778.7,0.3557]
[1745592009590,0.31419884,1779.3,1778.7,0.3557]
[1745592009591,1.24270294,1779.1,1778.7,0.3557]
[1745592012121,1.24270294,1779.1,1778.8,3.65466548]
[1745592012284,1.24270294,1779.3,1779.0,0.3557]
[1745592012615,0.8949,1779.6,1779.1,3.65466548]
[1745592012616,1.24270294,1779.5,1779.1,3.65466548]
[1745592012818,1.24270294,1779.5,1779.2,0.05619986]
[1745592012991,0.3135315,1779.6,1779.3,0.3557]
[1745592013196,1.24270294,1779.6,1779.3,0.3557]
[1745592013897,1.24270294,1779.4,1779.1,3.65466548]
[1745592014685,1.24270294,1779.2,1779.1,3.65466548]
[1745592016498,1.24270294,1779.4,1779.1,3.65466548]
[1745592017135,0.8301,1779.5,1779.1,3.65466548]
[1745592017136,1.24270294,1779.2,1779.1,3.65466548]
[1745592019933,0.31363038,1779.5,1779.2,0.3557]
[1745592020142,0.31363038,1779.5,1779.3,0.05619155]
[1745592020341,1.24270294,1779.8,1779.3,3.71085703]
[1745592020633,1.24270294,1780.0,1779.4,9.57036548]
[1745592020808,0.31363038,1780.0,1779.5,0.3557]
[1745592021223,0.31363038,1780.0,1779.4,9.21466548]
[1745592021224,0.31363038,1780.0,1779.7,0.3557]
[1745592021442,0.31363038,1780.0,1779.8,3.65466548]
[1745592021647,1.24270294,1780.1,1779.8,3.65466548]
[1745592022503,1.24270294,1780.1,1779.8,4.05570203]
[1745592023544,1.24270294,1779.9,1779.8,3.65466548]
[1745592024836,1.55633332,1780.1,1779.8,4.01036548]
[1745592025041,1.55633332,1780.1,1779.9,9.21466548]
[1745592025042,0.31363038,1780.1,1779.9,9.21466548]
[1745592025343,1.24270294,1780.3,1779.9,9.21466548]
[1745592025546,1.24270294,1780.3,1780.0,0.92146655]
[1745592026308,1.24270294,1780.3,1779.9,9.21466548]
[1745592027762,1.24270294,1780.1,1779.9,9.21466548]
[1745592028136,2.09960294,1780.1,1779.9,9.21466548]
[1745592028347,11.96013422,1780.1,1779.9,3.65466548]
[1745592028546,4.19601342,1780.0,1779.9,3.65466548]
[1745592028759,1.19601342,1780.0,1779.9,3.65466548]
[1745592028961,0.31363038,1780.0,1779.9,3.65466548]
[1745592029747,1.24270294,1780.2,1779.9,3.65466548]
[1745592029946,1.55633332,1780.4,1779.9,3.65466548]
[1745592030206,1.55633332,1780.4,1780.0,5.9147]
[1745592030356,1.55633332,1780.4,1780.1,0.59147]
[1745592030672,1.24270294,1780.6,1780.2,3.65466548]
[1745592030879,1.24270294,1780.6,1780.3,0.3557]
[1745592031026,1.24270294,1780.6,1780.4,3.65466548]
[1745592031425,1.55633332,1780.8,1780.4,3.65466548]
[1745592031657,1.24270294,1780.8,1780.5,0.36546655]
[1745592031822,0.2376175,1780.7,1780.6,3.65466548]
[1745592032026,0.05,1780.9,1780.6,4.06651619]
[1745592032227,0.24073328,1780.8,1780.6,4.01036548]
[1745592032458,0.05,1780.9,1780.6,4.01036548]
[1745592032669,0.05,1780.9,1780.8,0.3557]
[1745592032865,0.05,1780.9,1780.8,4.06650497]
[1745592033068,0.05,1780.9,1780.8,4.01036548]
[1745592036262,0.29276286,1780.9,1780.8,4.01036548]
[1745592039748,0.05,1780.9,1780.8,4.01036548]
[1745592039948,0.05,1780.9,1780.8,4.45150568]
[1745592040569,0.05,1780.9,1780.8,4.50763997]
[1745592040887,0.05,1780.9,1780.8,4.45150568]
[1745592042208,0.3420385,1781.5,1781.3,0.3557]
[1745592042508,0.3420385,1781.5,1781.4,9.14966548]
[1745592046472,1.1935385,1781.5,1781.4,3.60466548]
[1745592050307,6.80678576,1781.5,1781.4,3.60466548]
[1745592050912,7.11938016,1781.5,1781.4,3.60466548]
[1745592051112,5.61410067,1781.3,1781.1,3.60466548]
[1745592051298,2.35043356,1781.2,1781.1,3.60466548]
[1745592051606,0.21613062,1781.2,1781.1,3.60466548]
[1745592053269,0.8916,1781.4,1781.1,3.60466548]
[1745592053469,0.2154237,1781.3,1781.1,3.60466548]
[1745592055290,0.2154237,1781.3,1781.1,4.51953203]
[1745592056918,0.52840663,1781.3,1781.1,4.51953203]
[1745592057324,0.52840663,1781.3,1781.2,0.3557]
[1745592057621,0.2154237,1781.3,1781.2,0.3557]
[1745592058010,0.3420385,1781.5,1781.2,0.3557]
[1745592058197,0.2152173,1781.3,1781.2,0.89935607]
[1745592058398,0.3420385,1781.5,1781.2,0.8432232]
[1745592058599,0.2152173,1781.3,1781.2,0.8432232]
[1745592058819,0.3420385,1781.5,1781.2,0.8432232]
[1745592059021,0.2152173,1781.3,1781.2,0.8432232]
[1745592059198,0.3420385,1781.5,1781.2,0.8432232]
[1745592059397,0.2152173,1781.3,1781.2,4.44788868]
[1745592059722,0.3420385,1781.5,1781.2,4.50402158]
[1745592059922,0.21533587,1781.4,1781.3,0.45040216]
[1745592060627,0.04275481,1781.5,1781.4,0.3557]
[1745592060787,0.04275481,1781.5,1781.4,0.41181252]
[1745592061132,0.04275481,1781.5,1781.4,0.3557]
[1745592061427,0.04275481,1781.5,1781.4,3.9057]
[1745592061722,0.04275481,1781.5,1781.4,4.83165838]
[1745592062829,0.04275481,1781.5,1781.4,1.28165838]
[1745592063025,0.04275481,1781.5,1781.4,0.3557]
[1745592063321,0.04275481,1781.5,1781.3,4.05506764]
[1745592065608,8.61356236,1781.4,1781.3,3.60466548]
[1745592065807,5.6141093,1781.3,1781.0,9.14866548]
[1745592066128,1.24270294,1781.1,1781.0,9.14866548]
[1745592067395,1.24270294,1781.2,1781.0,9.14866548]
[1745592068109,0.18094721,1781.1,1781.0,10.06353203]
[1745592068310,1.24270294,1781.2,1781.0,10.06353203]
[1745592068511,0.18094721,1781.1,1781.0,10.06353203]
[1745592069031,2.06680294,1781.4,1781.0,10.41173203]
[1745592069196,0.18094721,1781.1,1781.0,10.41173203]
[1745592069395,2.06680294,1781.4,1781.0,10.41173203]
[1745592069591,0.17851732,1781.1,1781.0,10.06353203]
[1745592069929,0.17877588,1781.1,1781.0,10.06353203]
[1745592070127,1.24270294,1781.2,1781.0,10.06353203]
[1745592070323,0.17877588,1781.1,1781.0,10.06353203]
[1745592070624,1.24270294,1781.2,1781.0,10.06353203]
[1745592070793,0.17877588,1781.1,1781.0,10.06353203]
[1745592071296,1.24270294,1781.1,1781.0,9.14866548]
[1745592071509,1.42147882,1781.1,1781.0,9.14866548]
[1745592071830,2.27407882,1781.1,1781.0,9.14866548]
[1745592072044,7.8885867,1781.1,1781.0,9.14866548]
[1745592072531,2.27407882,1781.1,1781.0,9.14866548]
[1745592074100,7.8885867,1781.1,1781.0,9.14866548]
[1745592074339,2.27407882,1781.1,1781.0,9.14866548]
[1745592076495,1.42147882,1781.1,1781.0,9.14866548]
[1745592076700,0.17877588,1781.1,1781.0,10.06353203]
[1745592077145,2.13670294,1781.3,1781.0,10.06353203]
[1745592077306,0.1762423,1781.1,1781.0,10.06353203]
[1745592077515,2.13670294,1781.3,1781.0,10.06353203]
[1745592077844,0.1763609,1781.2,1781.0,10.06353203]
[1745592078153,0.1763609,1781.2,1781.1,4.61101868]
[1745592078502,0.04275481,1781.5,1781.1,4.61101868]
[1745592078704,0.17747723,1781.4,1781.1,4.61101868]
[1745592079030,0.17747723,1781.4,1781.2,0.05613256]
[1745592079226,0.17747723,1781.4,1781.3,0.3482]
[1745592079632,0.04275481,1781.5,1781.3,0.3482]
[1745592080030,0.17928675,1781.4,1781.1,4.61101868]
[1745592080243,0.17928675,1781.4,1781.2,0.46110187]
[1745592081074,0.17928675,1781.4,1781.3,5.25169767]
[1745592081363,0.04275481,1781.5,1781.3,5.25169767]
[1745592081364,0.04275481,1781.5,1781.4,6.95286548]
[1745592081663,0.04275481,1781.5,1781.4,7.50286548]
[1745592081815,0.05,1781.9,1781.8,0.3482]
[1745592082016,0.05,1781.9,1781.8,9.54297529]
[1745592082217,0.05,1781.9,1781.8,10.62154311]
[1745592082461,0.05,1781.9,1781.8,20.06962192]
[1745592082612,0.05,1782.9,1782.1,2.14090294]
[1745592082819,0.05,1782.9,1782.4,1.24270294]
[1745592083060,0.15642969,1782.8,1782.5,5.533]
[1745592083269,0.15642969,1782.8,1782.6,3.60466548]
[1745592083417,0.05,1782.9,1782.6,3.60466548]
[1745592083759,0.15642969,1782.8,1782.6,3.66075382]
[1745592083960,0.15642969,1782.8,1782.6,3.95286548]
[1745592084166,0.05,1782.9,1782.6,3.95286548]
[1745592084321,0.05,1782.9,1782.6,5.01179303]
[1745592084659,0.15642969,1782.8,1782.6,5.06787545]
[1745592084954,0.05,1782.9,1782.6,3.60466548]
[1745592085355,0.15642969,1782.8,1782.6,3.60466548]
[1745592085718,0.05,1782.9,1782.6,3.60466548]
[1745592085919,0.15642969,1782.8,1782.6,3.60466548]
[1745592086251,0.05,1782.9,1782.6,3.60466548]
[1745592086452,0.1563113,1782.7,1782.6,3.60466548]
[1745592086653,0.05,1782.9,1782.6,4.56662472]
[1745592087154,0.15642969,1782.8,1782.6,4.56662472]
[1745592087361,0.05,1782.9,1782.7,3.66074668]
[1745592087560,0.05,1782.9,1782.8,0.3482]
[1745592088265,0.05,1782.9,1782.8,7.00894206]
[1745592088430,0.05,1782.9,1782.8,7.70983627]
[1745592089219,0.05,1782.9,1782.8,7.65375969]
[1745592090558,0.4128106,1783.3,1782.9,3.55466548]
[1745592090742,0.4128106,1783.3,1783.0,9.08466548]
[1745592091175,0.4128106,1783.3,1783.1,0.4042661]
[1745592091472,0.4128106,1783.3,1783.1,1.9086605]
[1745592092176,0.4128106,1783.3,1783.1,1.96472368]
[1745592092331,0.4128106,1783.3,1783.1,1.9086605]
[1745592093252,0.4128106,1783.3,1783.2,0.0560637]
[1745592093452,0.4128106,1783.3,1783.2,0.41066851]
[1745592093662,0.4128106,1783.3,1783.1,1.9086605]
[1745592093989,1.2287106,1783.3,1783.0,9.08466548]
[1745592094391,0.17479534,1783.2,1783.0,9.08466548]
[1745592094948,0.17479534,1783.2,1783.0,9.99313203]
[1745592095177,0.4128106,1783.3,1783.0,9.99313203]
[1745592095683,0.17474369,1783.2,1783.0,9.99313203]
[1745592096182,0.4128106,1783.3,1783.1,0.3517]
[1745592096390,0.9413,1783.9,1783.3,3.14185488]
[1745592096695,0.9413,1783.9,1783.5,0.3517]
[1745592096990,0.17447186,1783.8,1783.6,8.72690972]
[1745592097189,0.17447186,1783.8,1783.7,3.19790799]
[1745592097392,0.05,1783.9,1783.7,3.19790799]
[1745592097590,0.05,1783.9,1783.7,3.14185488]
[1745592097753,0.05,1783.9,1783.8,0.31418549]
[1745592098288,0.05,1783.9,1783.8,1.0966783]
[1745592098469,0.05,1783.9,1783.8,0.72192753]
[1745592098648,0.05,1783.9,1783.8,0.66588549]
[1745592099085,0.05,1783.9,1783.8,0.7219298]
[1745592099807,0.05,1783.9,1783.8,3.7219298]
[1745592100106,0.05,1783.9,1783.8,10.3315589]
[1745592100274,0.05,1783.9,1783.8,4.21588549]
[1745592100799,1.7039,1784.3,1784.0,3.09185488]
[1745592100980,1.7039,1784.3,1784.1,8.91804037]
[1745592101297,0.16519024,1784.2,1784.1,8.60885488]
[1745592103200,0.99969024,1784.2,1784.1,8.60885488]
[1745592104213,0.16519024,1784.2,1784.1,8.60885488]
[1745592107215,0.16519024,1784.2,1784.1,9.51055488]
[1745592107368,1.7039,1784.3,1784.2,2.92666464]
[1745592107568,1.7039,1784.3,1784.2,3.8062011]
[1745592109113,1.7039,1784.3,1784.2,2.92666464]
[1745592109873,8.67607341,1784.3,1784.2,2.92666464]
[1745592110487,2.5604,1784.3,1784.2,2.92666464]
[1745592111405,1.7039,1784.3,1784.2,2.92666464]
[1745592112068,1.7039,1784.3,1784.2,7.31509955]
[1745592112271,1.7039,1784.3,1784.2,8.59830951]
[1745592112712,0.73464061,1784.8,1784.3,1.22276464]
[1745592113019,0.13854617,1784.7,1784.3,1.22276464]
[1745592113411,0.13854617,1784.7,1784.4,1.22276464]
[1745592113715,0.13854617,1784.7,1784.5,1.22276464]
[1745592114017,0.13854617,1784.7,1784.6,5.515]
[1745592114315,0.13854617,1784.7,1784.6,7.4115411]
[1745592114978,0.73464061,1784.8,1784.6,7.4115411]
[1745592115396,0.13729985,1784.7,1784.6,6.73776464]
[1745592115601,0.13729985,1784.7,1784.6,1.22276464]
[1745592115602,1.02049985,1784.7,1784.6,1.22276464]
[1745592115975,7.13617326,1784.7,1784.6,1.22276464]
[1745592116412,7.13617326,1784.7,1784.4,5.514]
[1745592116617,1.58681733,1784.6,1784.4,5.514]
[1745592116930,0.13665092,1784.5,1784.4,5.514]
[1745592118825,1.00985092,1784.5,1784.4,5.514]
[1745592119937,3.13665092,1784.5,1783.8,1.22276464]
[1745592120118,0.8606,1784.2,1784.0,5.514]
[1745592120282,0.13395958,1784.1,1784.0,5.514]
[1745592121424,0.13395958,1784.1,1784.0,6.0654]
[1745592121718,0.13395958,1784.1,1784.0,5.514]
[1745592125795,14.85469997,1784.1,1784.0,5.514]
[1745592126034,3.0,1784.0,1783.8,1.22276464]
[1745592126402,0.1172003,1783.9,1783.8,1.22276464]
[1745592126727,0.9605003,1783.9,1783.8,1.22276464]
[1745592126935,0.9605003,1783.9,1783.7,22.325]
[1745592127108,0.9605003,1783.9,1783.5,6.73776464]
[1745592127632,6.56629889,1783.9,1783.5,6.73776464]
[1745592127860,0.8433,1783.6,1783.5,6.73776464]
[1745592128039,0.8433,1783.6,1783.5,5.515]
[1745592128239,9.5661642,1783.6,1783.5,5.515]
[1745592128613,3.95952595,1783.6,1783.5,5.515]
[1745592129826,0.11622595,1783.6,1783.5,5.515]
[1745592130027,0.11622595,1783.6,1783.5,6.0665]
[1745592130346,0.12623469,1783.6,1783.5,6.0665]
[1745592130525,0.8885,1783.9,1783.5,6.0665]
[1745592130731,0.12651851,1783.8,1783.5,6.0665]
[1745592131033,0.8885,1783.9,1783.5,6.0665]
[1745592131219,0.12637661,1783.7,1783.6,0.60665]
[1745592131420,0.8885,1783.9,1783.6,0.60665]
[1745592131647,0.12637661,1783.7,1783.6,0.60665]
[1745592132143,0.8885,1783.9,1783.6,0.60665]
[1745592132349,0.12651851,1783.8,1783.6,0.60665]
[1745592132544,0.8885,1783.9,1783.6,0.60665]
[1745592132847,0.12651851,1783.8,1783.5,5.515]
[1745592133347,0.12637661,1783.7,1783.5,5.515]
[1745592133649,3.8166,1784.3,1783.5,5.515]
[1745592133810,3.8166,1784.3,1783.6,1.27882715]
[1745592134013,3.8166,1784.3,1783.6,1.22276464]
[1745592134265,10.97472099,1784.3,1783.6,1.90214691]
[1745592134543,10.97469282,1784.3,1783.6,1.90214691]
[1745592135653,0.8166,1784.3,1783.7,0.42315811]
[1745592135815,0.8166,1784.5,1783.8,1.22276464]
[1745592136020,0.8166,1784.7,1784.0,0.3671]
[1745592136341,0.8166,1784.7,1784.1,6.73076464]
[1745592136528,3.8166,1784.7,1784.1,7.4405511]
[1745592136732,0.8166,1784.7,1784.1,7.4405511]
[1745592138557,0.8166,1784.7,1784.2,1.22276464]
[1745592138857,3.0,1784.5,1784.2,1.22276464]
[1745592139024,7.01727341,1784.4,1784.2,1.22276464]
[1745592139233,8.01900075,1784.4,1784.2,1.22276464]
[1745592139942,7.01727341,1784.4,1784.2,1.22276464]
[1745592140464,0.9016,1784.4,1784.2,1.22276464]
[1745592140756,0.9016,1784.4,1784.2,1.02169024]
[1745592141155,0.11257971,1784.3,1784.2,1.02169024]
[1745592141358,0.9016,1784.4,1784.2,1.02169024]
[1745592141566,0.11257971,1784.3,1784.2,1.02169024]
[1745592141743,9.96817341,1784.6,1784.2,1.02169024]
[1745592141930,0.11281604,1784.5,1784.2,1.02169024]
[1745592142259,0.11281604,1784.5,1784.2,1.38879024]
[1745592142769,0.11269788,1784.4,1784.2,1.38879024]
[1745592142971,3.0,1784.7,1784.2,1.38879024]
[1745592143265,0.11293419,1784.6,1784.2,1.38879024]
[1745592143628,0.8923,1784.5,1784.2,1.02169024]
[1745592143825,1.00511604,1784.5,1784.2,1.02169024]
[1745592144862,0.11281604,1784.5,1784.2,1.73070231]
[1745592145069,0.11281604,1784.5,1784.2,1.67465926]
[1745592145269,3.0,1784.5,1784.2,1.02169024]
[1745592145441,3.8291,1784.3,1784.1,5.507]
[1745592145765,9.22813494,1784.2,1784.1,5.507]
[1745592146565,14.83288777,1784.2,1784.1,5.507]
[1745592146745,16.95953229,1784.2,1784.1,5.507]
[1745592147538,11.35477946,1784.2,1784.1,5.507]
[1745592147969,3.11246153,1784.2,1783.7,1.02169024]
[1745592148172,0.11246153,1784.2,1783.8,5.507]
[1745592149970,0.11246153,1784.2,1783.9,0.3671]
[1745592150178,0.8646,1784.6,1784.0,1.02169024]
[1745592150482,0.1101322,1784.5,1784.0,1.02169024]
[1745592151285,0.1101322,1784.5,1784.0,1.07773019]
[1745592151442,0.1101322,1784.5,1784.0,1.02169024]
[1745592152644,0.1101322,1784.5,1784.1,0.3818]
[1745592153036,0.1101322,1784.5,1783.8,11.53590584]
[1745592153037,0.1101322,1784.5,1784.2,1.07772892]
[1745592153363,0.05,1784.9,1784.4,0.3818]
[1745592153684,0.05,1784.9,1784.5,1.02169024]
[1745592156265,0.8331,1784.8,1784.5,1.02169024]
[1745592158788,0.05,1784.9,1784.5,1.02169024]
[1745592160160,0.8361,1784.8,1784.5,1.02169024]
[1745592163962,9.11567341,1784.6,1784.3,5.507]
[1745592164161,9.11567341,1784.4,1784.3,5.507]
[1745592164391,9.42922742,1784.4,1784.3,5.507]
[1745592164785,3.31355401,1784.4,1784.3,5.507]
[1745592165502,0.31355401,1784.4,1784.3,5.507]
[1745592165716,0.8681,1784.5,1784.3,5.507]
[1745592166510,1.18165401,1784.5,1784.3,5.507]
[1745592166720,6.78561758,1784.5,1784.3,5.507]
[1745592167007,15.3983598,1784.4,1784.3,5.507]
[1745592167715,15.71191381,1784.4,1784.3,5.507]
[1745592168375,10.10778918,1784.4,1784.3,5.507]
[1745592169471,15.71191381,1784.4,1784.3,5.507]
[1745592169807,10.10778918,1784.4,1784.3,5.507]
[1745592170108,15.71191381,1784.4,1784.3,5.507]
[1745592170715,10.10778918,1784.4,1784.3,5.507]
[1745592171120,15.71191381,1784.4,1784.3,5.507]
[1745592171919,0.8443,1784.2,1783.9,5.499]
[1745592172123,7.60485824,1784.2,1783.9,5.499]
[1745592172327,3.0,1784.1,1783.9,5.499]
[1745592173262,3.31355401,1784.1,1783.9,5.499]
[1745592173961,0.31355401,1784.1,1783.9,5.499]
[1745592174173,3.0,1784.1,1783.9,5.499]
[1745592174338,5.90538116,1784.0,1783.9,5.499]
[1745592174520,5.60591705,1783.9,1783.5,1.40349024]
[1745592174720,6.4482066,1783.8,1783.5,6.52069024]
[1745592174924,3.8421,1783.8,1783.5,5.499]
[1745592176363,4.15541474,1783.8,1783.5,5.499]
[1745592176661,1.15541474,1783.8,1783.5,5.499]
[1745592177280,0.31331474,1783.8,1783.5,5.499]
[1745592177574,0.31331474,1783.8,1783.5,7.73]
[1745592177776,1.16491474,1784.0,1783.6,0.3818]
[1745592177975,0.31331474,1784.0,1783.6,0.3818]